Workbook

Sheet Pasiūlymas
A1: Perkančioji organizacija, kuriai teikiamas pasiūlymas: | C1: VŠĮ Kauno klinikinė ligoninė
B3: PASIŪLYMAS
B4: Vienkartinės medicininės priemonės
A6: Data: | B6: 2018-04-12
A7: Nr.: | B7: 43202
A8: Vieta: | B8: Vilnius
A10: Tiekėjo pavadinimas /Jeigu dalyvauja ūkio subjektų grupė, surašomi visi dalyvių pavadinimai/ | C10: UAB Ilsanta
A11: Įmonės kodas /Jeigu dalyvauja ūkio subjektų grupė, surašomi visi dalyvių kodai/ | C11: 110498671
A12: PVM mokėtojo kodas /Jeigu dalyvauja ūkio subjektų grupė, surašomi visi dalyvių kodai/ | C12: LT104986716
A13: Banko pavadinimas, banko kodas, sąskaitos Nr. | C13: Luminor
A14: Tiekėjo adresas /Jeigu dalyvauja ūkio subjektų grupė, surašomi visi dalyvių adresai/ | C14: Goštauto g/40A
A15: Telefono numeris | C15: 868794866
A16: Fakso numeris | C16: 852691611
A17: El. pašto adresas | C17: sandra@ilsanta.lt
A18: Asmens, pasirašiusio pasiūlymą saugiu elektroniniu parašu, vardas, pavardė, pareigos | C18: Sandra Čaikė
A19: Asmens, įgalioto pasirašyti sutartį, vardas, pavardė, pareigos | C19: Tomas Godelis
A23: 1. Šiuo pasiūlymu pažymime, kad sutinkame su visomis pirkimo sąlygomis, nustatytomis: 1) pirkimo skelbime, paskelbtame Viešųjų pirkimų įstatymo nustatyta tvarka; 2) pirkimo sąlygose ir kituose pirkimo dokumentuose (jų paaiškinimuose, papildymuose).
A25: Siūlomas pirkimo objektas visiškai atitinka pirkimo sąlygose nustatytus reikalavimus ir jo kaina yra:
A28: Nr. | B28: Pavadinimas | C28: Kiekis | D28: Mato vienetas | E28: Kaina be PVM | F28: Suma be PVM | G28: Siūlomos prekės pavadinimas ir/ar gamintojas | H28: Siūlomos prekės parametrai
A29: 301. | B29: Sauskelnės
A30: 301.1. | B30: Sauskelnės suaugusiems Small | C30: 1000 | D30: Vnt.
A31: 301.1.1. | B31: Normalios sauskelnės, kurių sugėrimas pagal ne mažiau kaip 1400 ml
A32: 301.1.2. | B32: Liemens apimtis 50 – 80 cm.
A33: 301.1.3. | B33: Turi atitikti Medicinos prietaisų direktyvą, ženklintos CE ženklu.
A34: 301.1.4. | B34: Sugeriamasis sluoksnis turi būti pagamintas iš super absorbuojančių polimerų.
A35: 301.1.5. | B35: Turi būti tvirtinamos keturiais lipdukais po du kiekviename sauskelnių šone, kurių kiekvienas turi būti klijuojamas iš abiejų pusių (dvigubas lipdukas).
A36: 301.1.6. | B36: Privalo turėti skysčio indikatorių.
A37: 301.2. | B37: Sauskelnės suaugusiems Medium | C37: 1000 | D37: Vnt.
A38: 301.2.1. | B38: Vidutinio dydžio sauskelnės, kurių sugėrimas ne mažiau 2000 ml
A39: 301.2.2. | B39: Liemens apimtis 80 – 115 cm
A40: 301.2.3. | B40: Turi atitikti Medicinos prietaisų direktyvą, ženklintos CE ženklu
A41: 301.2.4. | B41: Privalo turėti orui laidžią juosmens sritį paciento komfortui užtikrinti
A42: 301.2.5. | B42: Privalo turėti nemalonų kvapą neutralizuojančią sistemą
A43: 301.2.6. | B43: Sugeriamasis sluoksnis turi būti pagamintas iš super absorbuojančių polimerų
A44: 301.2.7. | B44: Turi būti tvirtinamos keturiais lipdukais po du kiekviename sauskelnių šone, kurių kiekvienas turi būti klijuojamas iš abiejų pusių (dvigubas lipdukas).
A45: 301.2.8. | B45: Privalo turėti skysčio indikatorių.
A46: 301.2.9. | B46: Vidinis sauskelnių sluoksnis turi būti impregnuotas odą drėkinančiomis ir raminančiomis medžiagomis.
A47: 301.3. | B47: Sauskelnės suaugusiems Large | C47: 40000 | D47: Vnt.
A48: 301.3.1. | B48: Didelės sauskelnės, kurių absorbcija ne mažiau 2300 ml
A49: 301.3.2. | B49: L dydis – liemens apimtis 115-150 cm
A50: 301.3.3. | B50: Turi atitikti Medicinos prietaisų direktyvą, ženklintos CE ženklu
A51: 301.3.4. | B51: Privalo turėti orui laidžią juosmens sritį paciento komfortui užtikrinti
A52: 301.3.5. | B52: Privalo turėti nemalonų kvapą neutralizuojančią sistemą
A53: 301.3.6. | B53: Sugeriamasis sluoksnis turi būti pagamintas iš super absorbuojančių polimerų
A54: 301.3.7. | B54: Turi būti tvirtinamos keturiais lipdukais po du kiekviename sauskelnių šone, kurių kiekvienas turi būti klijuojamas iš abiejų pusių (dvigubas lipdukas)
A55: 301.3.8. | B55: Privalo turėti skysčio indikatorių
A56: 301.3.9. | B56: Vidinis sauskelnių sluoksnis turi būti impregnuotas odą drėkinančiomis ir raminančiomis medžiagomis
A57: 301.4. | B57: Sauskelnės suaugusiems Large gausiai sugeriančios | C57: 10000 | D57: Vnt.
A58: 301.4.1. | B58: Didelės sauskelnės, kurių absorbcija ne mažiau 3900 ml.
A59: 301.4.2. | B59: L dydis – liemens apimtis 115-150 cm.
A60: 301.4.3. | B60: Turi atitikti Medicinos prietaisų direktyvą, ženklintos CE ženklu
A61: 301.4.4. | B61: Privalo turėti orui laidžią juosmens sritį paciento komfortui užtikrinti
A62: 301.4.5. | B62: Privalo turėti nemalonų kvapą neutralizuojančią sistemą
A63: 301.4.6. | B63: Sugeriamasis sluoksnis turi būti pagamintas iš super absorbuojančių polimerų
A64: 301.4.7. | B64: Turi būti tvirtinamos keturiais lipdukais po du kiekviename sauskelnių šone, kurių kiekvienas turi būti klijuojamas iš abiejų pusių (dvigubas lipdukas)
A65: 301.4.8. | B65: Privalo turėti skysčio indikatorių
A66: 301.4.9. | B66: Vidinis sauskelnių sluoksnis turi būti impregnuotas odą drėkinančiomis ir raminančiomis medžiagomis
A67: 301.5. | B67: Sauskelnės suaugusiems anatominės L | C67: 1000 | D67: Vnt.
A68: 301.5.1. | B68: Orui laidžios (sunkiam šlapimo nelaikymui).
A69: 301.5.2. | B69: Ne juostinės.
A70: 301.5.3. | B70: Visas išorinis sluoksnis sudarytas iš vientisos orui laidžios medžiagos, nepraleidžiančios drėgmės
A71: 301.5.4. | B71: Be latekso
A72: 301.5.5. | B72: Turi turėti nemalonių kvapų neutralizuojančią sistemą.
A73: 301.5.6. | B73: Dvigubas sugeriantis sluoksnis.
A74: 301.5.7. | B74: Tvirtinamos daugkartiniai lipdukais, kurių klijavimo vietą galima keisti
A75: 301.5.8. | B75: Turi turėti skysčių indikatorių
A76: 301.5.9. | B76: Juosmens - klubų apimtis 100-150 cm, sugėrimas ne mažiau 2500ml
A77: 301.6. | B77: Sauskelnės suaugusiems anatominės XL | C77: 1000 | D77: Vnt.
A78: 301.6.1. | B78: Orui laidžios (sunkiam šlapimo nelaikymui)
A79: 301.6.2. | B79: Ne juostinės
A80: 301.6.3. | B80: Visas išorinis sluoksnis sudarytas iš vientisos orui laidžios medžiagos, nepraleidžiančios drėgmės
A81: 301.6.4. | B81: Be latekso
A82: 301.6.5. | B82: Turi turėti nemalonių kvapų neutralizuojančią sistemą
A83: 301.6.6. | B83: Dvigubas sugeriantis sluoksnis
A84: 301.6.7. | B84: Tvirtinamos daugkartiniai lipdukais, kurių klijavimo vietą galima keisti
A85: 301.6.8. | B85: Turi turėti skysčių indikatorių. Juosmens - klubų apimtis 130-170 cm, sugėrimas ne mažiau 2500ml
E86: Suma be PVM
E87: PVM suma
E88: Suma su PVM
A90: 302. | B90: Sauskelnės vaikams
A91: 302.1. | B91: Sauskelnės vaikams MINI | C91: 10000 | D91: Vnt.
A92: 302.1.1. | B92: Nuo 2-3 iki 5-6 kg.
A93: 302.1.2. | B93: Viršutinis sluoksnis švelnus, orui laidus
A94: 302.1.3. | B94: Vidinis sluoksnis minkštas, neaustinės medžiagos
A95: 302.2. | B95: Sauskelnės vaikams MIDI | C95: 2000 | D95: Vnt.
A96: 302.2.1. | B96: Nuo 4-5 iki 9-10 kg
A97: 302.2.2. | B97: Viršutinis sluoksnis švelnus, orui laidus
A98: 302.2.3. | B98: Vidinis sluoksnis minkštas, neaustinės medžiagos
A99: 302.3. | B99: Sauskelnės vaikams MAXI | C99: 2000 | D99: Vnt.
A100: 302.3.1. | B100: Nuo 12-15 iki 20-25 kg
A101: 302.3.2. | B101: Vidinis sluoksnis minkštas, neaustinės medžiagos.
E102: Suma be PVM
E103: PVM suma
E104: Suma su PVM
A106: 303. | B106: Pienelis kūdikių odai tepti
A107: 303.1. | B107: Pienelis kūdikių odai tepti | C107: 5000 | D107: ml
A108: 303.1.1. | B108: Sudėtyje nėra konservantų, cheminių medžiagų ar kitų kūdikiui pakenkti galinčių priedų
E109: Suma be PVM
E110: PVM suma
E111: Suma su PVM
A113: 304. | B113: Kremas kūdikiams be cinko oksido
A114: 304.1. | B114: Kremas kūdikiams be cinko oksido | C114: 4000 | D114: g
A115: 304.1.1. | B115: Sudėtyje nėra konservantų, cheminių medžiagų ar kitų kūdikiui pakenkti galinčių priedų
E116: Suma be PVM
E117: PVM suma
E118: Suma su PVM
A120: 305. | B120: Pudra kūdikiams
A121: 305.1. | B121: Pudra kūdikiams | C121: 5000 | D121: g
A122: 305.1.1. | B122: Pudros sudėtyje nėra konservantų, cheminių medžiagų ar kitų kūdikiui pakenkti galinčių priedų
E123: Suma be PVM
E124: PVM suma
E125: Suma su PVM
A127: 306. | B127: Servetėlės drėgnos vaikiškos
A128: 306.1. | B128: Servetėlės drėgnos vaikiškos | C128: 35000 | D128: Vnt.
A129: 306.1.1. | B129: Servetėlių sudėtyje nėra konservantų, cheminių medžiagų ar kitų kūdikiui pakenkti galinčių priedų
E130: Suma be PVM
E131: PVM suma
E132: Suma su PVM
A134: 307. | B134: Šampūnas kūdikiams
A135: 307.1. | B135: Šampūnas kūdikiams | C135: 12500 | D135: ml
A136: 307.1.1. | B136: Šampūno sudėtyje nėra konservantų, cheminių medžiagų ar kitų kūdikiui pakenkti galinčių priedų
E137: Suma be PVM
E138: PVM suma
E139: Suma su PVM
A141: 308. | B141: Krapštukai higieniniai
A142: 308.1. | B142: Krapštukai higieniniai | C142: 40000 | D142: Vnt.
A143: 308.1.1. | B143: Supakuoti dėžutėse po 100-200 vnt.
E144: Suma be PVM
E145: PVM suma
E146: Suma su PVM
A148: 309. | B148: Tamponas
A149: 309.1. | B149: Tamponas | C149: 100 | D149: Vnt.
A150: 309.1.1. | B150: 2cm x 5m
A151: 309.1.2. | B151: Nosies ir veido ertmių tamponavimui, kraujavimui stabdyti
A152: 309.1.3. | B152: Neutralus tepalo tamponas, impregnuotas indiderentiška angliavandenio žele
E153: Suma be PVM
E154: PVM suma
E155: Suma su PVM
A157: 310. | B157: Tamponas kraujavimui iš nosies stabdyti
A158: 310.1. | B158: Tamponas kraujavimui iš nosies stabdyti | C158: 50 | D158: Vnt.
A159: 310.1.1. | B159: Vienpusiai tamponai kraujavimui iš nosies stabdyti, 10cm (± 0,5cm).
A160: 310.1.2. | B160: Skysčio absorbcija iki 20 kartų tampono svorio
A161: 310.1.3. | B161: Tamponas pagamintas iš standartinės kempinės ir mikrodispersinės oksiduotos celiuliozės (augalinės kilmės) ir padengtas lubrikantu.
E162: Suma be PVM
E163: PVM suma
E164: Suma su PVM
A166: 311. | B166: Patanatominiai indai
A167: 311.1. | B167: Indas patanatominis | C167: 2000 | D167: Vnt.
A168: 311.1.1. | B168: 1 ltr. talpos
A169: 311.2. | B169: Indas patanatominis | C169: 400 | D169: Vnt.
A170: 311.2.1. | B170: 2,5 ltr. talpos
A171: 311.3. | B171: Indas patanatominis | C171: 500 | D171: Vnt.
A172: 311.3.1. | B172: 30ml.talpos
E173: Suma be PVM
E174: PVM suma
E175: Suma su PVM
A177: 312. | B177: Hemostatinės kempinėlės
A178: 312.1. | B178: Kempinėlė hemostatinė 10x10x10 mm | C178: 100 | D178: Vnt.
A179: 312.2. | B179: Kempinėlė hemostatinė 70x50x10 mm | C179: 250 | D179: Vnt.
E180: Suma be PVM
E181: PVM suma
E182: Suma su PVM
A184: 313. | B184: Prezervatyvai
A185: 313.1. | B185: Prezervatyvai | C185: 7000 | D185: Vnt.
A186: 313.1.1. | B186: Apsauga davikliams
E187: Suma be PVM
E188: PVM suma
E189: Suma su PVM
A191: 314. | B191: Priemonės troakarui
A192: 314.1. | B192: Guminė kepurėlė | C192: 50 | D192: Vnt.
A193: 314.1.1. | B193: Guminės kepurėlės trokarui 5mm
A194: 314.1.2. | B194: Tinka įvairių gamintojų trokarams ir 5mm instrumentams
A195: 314.2. | B195: Guminė kepurėlė | C195: 50 | D195: Vnt.
A196: 314.2.1. | B196: Guminės kepurėlės trokarui 10mm
A197: 314.2.2. | B197: Tinka įvairių gamintojų trokarams
A198: 314.3. | B198: Trokarų kepurėlės | C198: 300 | D198: Vnt.
A199: 314.3.1. | B199: 5,5 ± 0,5mm skersmens trokarams, tinkamos ligoninės turimiems firmos „Karl Storz“ trokarams
A200: 314.4. | B200: Trokarų kepurėlės | C200: 150 | D200: Vnt.
A201: 314.4.1. | B201: 10,5 ± 0,5mm skersmens trokarams, tinkamos ligoninės turimiems firmos „Karl Storz“ trokarams
E202: Suma be PVM
E203: PVM suma
E204: Suma su PVM
A206: 315. | B206: Drėkintuvas CPAP sistemai
A207: 315.1. | B207: Drėkintuvas CPAP sistemai | C207: 10 | D207: Vnt.
A208: 315.1.1. | B208: 2 angos M kontūrams prijungti-22mm, jungtis vandeniui pilti, vienkartiniai, skirti naujagimiams, be automatinės plūdės, su atžyma vandens kiekiui
E209: Suma be PVM
E210: PVM suma
E211: Suma su PVM
A213: 316. | B213: Rinkinys hermioplastikai
A214: 316.1. | B214: Rinkinys hermioplastikai, turi tikti prie gydymo įstaigoje turimų daugkartinių vožtuvų: Fiksavimo balionas | C214: 60 | D214: Vnt.
A215: 316.1.1. | B215: Sterilus, be latekso, darbinis kanalas permatomas (skaidrus), diametras 11 ± 0,5mm.
A216: 316.1.2. | B216: Darbinis kanalas su kempine fiksavimui prie pjūvio, bei kraujavimo stabdymui
A217: 316.1.3. | B217: Su galimybe prijungti daugkartinio naudojimo vožtuvą (prijungtas vožtuvas su balionu turi sudaryti vientisą sistemą)
A218: 316.1.4. | B218: Atskiras kanalas su kraneliu fiksavimo balionėlio išpūtimui
A219: 316.1.5. | B219: Optika ir balionėlis sąlyčio taškų neturi
A220: 316.1.6. | B220: Komplektuojama su 30ml švirkštu
A221: 316.2. | B221: Rinkinys hermioplastikai, turi tikti prie gydymo įstaigoje turimų daugkartinių vožtuvų: Išplėtimo balionas | C221: 60 | D221: Vnt.
A222: 316.2.1. | B222: Sterilus, be latekso, darbinis kanalas permatomas (skaidrus), diametras 11 ± 0,5mm
A223: 316.2.2. | B223: Su galimybe prijungti daugkartinio naudojimo vožtuvą (prijungtas vožtuvas su balionu turi sudaryti vientisą sistemą)
A224: 316.2.3. | B224: Komplektuojamas su oro pripūtimo kriauše
... 415 more rows

Sheet Subtiekėjai
A2: Sutarties vykdymui numatome pasitelkti šiuos subtiekėjus / subteikėjus / subrangovus (įrašyti visus subtiekėjus / subteikėjus / subrangovus nepriklausomai nuo tiekiamų prekių/ teikiamų paslaugų/ atliekamų darbų vertės):
A4: Subtiekėjo / subteikėjo / subrangovo (-ų) pavadinimas (-ai) | C4: Adresas | F4: Trumpas aprašymas | I4: Procentas nuo pasiūlymo kainos be PVM
A11: Jeigu pirkimo dokumentų 18 punkte numatytas subtiekimo / subteikimo / subrangos apribojimas: Mes patvirtiname, kad subtiekėjams / subteikėjams / subrangovams (tiekėjams, kuriuos pasamdysime dalies sutartyje numatytų prekių tiekimui /paslaugų teikimui / darbų atlikimui) perduodamų tiekti prekių / teikti paslaugų/ atlikti darbų dalis neviršys proc. pasiūlymo kainos be PVM.
A13: Mes patvirtiname, kad esame / nesame (nereikalingą išbraukti) laikomi asocijuotais (susijusiais) su Perkančiąja organizacija pagal Lietuvos Respublikoje galiojančių teisės aktų (Lietuvos Respublikos pelno mokesčio, Lietuvos Respublikos pridėtinės vertės mokesčio ir Lietuvos Respublikos gyventojų pajamų mokesčio įstatymų) nuostatas.
A15: Kartu su pasiūlymu pateikiami šie dokumentai:
A17: Eil.Nr. | B17: "Pateiktų skaitmeninių dokumentų (ar jų kopijų) pavadinimas (pasiūlymą sudarančių konfidencialių dokumentų pavadinimai pažymėti prierašu KONFIDENCIALU)" | H17: Prisegtos bylos (failo) pavadinimas
B18: Įgaliojimas pasirašyti dokumentus | H18: Įgaliojimas pasirašyti dokumentus
B19: Gamintoju igaliojimai | H19: Gamintoju igaliojimai
B20: Sertifikatai | H20: Sertifikatai
B21: Katalogai | H21: Katalogai
A25: Pasiūlymo galiojimo užtikrinimui pateikiame :
A27: (Nurodyti užtikrinimo būdą, dydį, dokumentus)
A29: Pasiūlymas galioja iki termino, nustatyto pirkimo dokumentuose. Pasiūlymo neatskiriama dalis yra (rašoma, jeigu buvo reikalauta prie pasiūlymo pridėti atitinkamą dokumentą)
A33: Tiekėjo arba jo įgalioto asmens pareigų pavadinimas | E33: Sandra Čaikė
A36: Pasirašančio asmens vardas ir pavardė | E36: Sandra Čaikė
A39: **kadangi visas pasiūlymas pasirašomas saugiu elektroniniu parašu, šio dokumento atskirai pasirašyti neprivaloma.
A100: 563-7
